Workbook

Sheet паспорт
A1: ПАТ "УКРТРАНСГАЗ" | G1: ПАСПОРТ ФІЗИКО-ХІМІЧНИХ ПОКАЗНИКІВ ПРИРОДНОГО ГАЗУ № 655
A2: Філія "УМГ "ХАРКІВТРАНСГАЗ" | G2: переданого Сєвєродонецьким ЛВУМГ та прийнятого ПАТ "Луганськгаз"
A3: Сєвєродонецьке ЛВУМГ | G3: Маршрут № 655
A4: Вимірювальна хіміко-аналітична лабораторія
A5: Свідоцтво № РЬ089/2014 чинно до 06.06.2017 р. | K5: по газопроводу "Ставрополь-Москва,Краснодарский край-Серпухов" | V5: за період з | X5: 01.05.2017 р. | Z5: по | AA5: 31.05.2017 р.
A7: Число місяця | B7: Компонентний склад, мол. % | N7: Фізико-хімічні показники газу обчислені на основі компонентного складу, 101,325 кПа | X7: Температура точки роси за вологою (Р = 3.92 МПа), °С | Y7: Температура точки роси за вуглеводнями, °С | Z7: Вміст сірководню, г/м3 | AA7: Вміст меркаптанової сірки, г/м3 | AB7: Вміст механічних домішок, г/м3
N8: Густина абсолютна, кг/м3,при 20 °С, | O8: Температура вимірювання/згоряння при 20/25°С
B9: метан, С1 | C9: етан, С2 | D9: пропан, С3 | E9: ізо-бутан, і-С4 | F9: н-бутан, н-С4 | G9: нео-пентан, нео-С5 | H9: ізо-пентан, і-С5 | I9: н-пентан, н-С5 | J9: гексани та вищі, С6+ | K9: кисень, О2 | L9: азот, N2 | M9: діоксид вуглецю, CО2 | O9: Теплота згоряння нижча | R9: Теплота згоряння вища | U9: Число Воббе вище
O10: ккал/м³ | P10: МДж/м³ | Q10: кВт⋅год/м³ | R10: ккал/м³ | S10: МДж/м³ | T10: кВт⋅год/м³ | U10: ккал/м³ | V10: МДж/м³ | W10: кВт⋅год/м³
A11: 1 | O11: =P11*238.8459 -> 8164.445515 | P11: 34.1829 | Q11: =P11/3.6 -> 9.49525 | R11: =S11*238.8459 -> 9048.318653 | S11: 37.8835 | T11: =S11/3.6 -> 10.52319444 | U11: =V11/0.0041868 -> 11820.53119 | V11: 49.4902 | W11: =V11/3.6 -> 13.74727778 | AC11: =SUM(B11:M11)+$K$42+$N$42 -> 0
A12: 2 | O12: 8164.445515 | P12: 34.1829 | Q12: 9.49525 | R12: 9048.318653 | S12: 37.8835 | T12: 10.52319444 | U12: 11820.53119 | V12: 49.4902 | W12: 13.74727778 | AC12: 0
A13: 3 | B13: 95.0502 | C13: 2.4546 | D13: 0.6925 | E13: 0.0942 | F13: 0.0969 | G13: 0.0027 | H13: 0.0198 | I13: 0.0138 | J13: 0.0075 | K13: 0.0099 | L13: 1.251 | M13: 0.3069 | N13: 0.705 | O13: 8145.075113 | P13: 34.1018 | Q13: 9.472722222 | R13: 9027.324098 | S13: 37.7956 | T13: 10.49877778 | U13: 11799.08283 | V13: 49.4004 | W13: 13.72233333 | AC13: 100 | AD13: =IF(AC13=100,"ОК"," ") -> ОК
A14: 4 | O14: =P14*238.8459 -> 8145.075113 | P14: 34.1018 | Q14: =P14/3.6 -> 9.472722222 | R14: =S14*238.8459 -> 9027.324098 | S14: 37.7956 | T14: =S14/3.6 -> 10.49877778 | U14: =V14/0.0041868 -> 11799.08283 | V14: 49.4004 | W14: =V14/3.6 -> 13.72233333 | AC14: 0 | AD14: =IF(AC14=100,"ОК"," ") -> 
A15: 5 | O15: 8145.075113 | P15: 34.1018 | Q15: 9.472722222 | R15: 9027.324098 | S15: 37.7956 | T15: 10.49877778 | U15: 11799.08283 | V15: 49.4004 | W15: 13.72233333 | AC15: 0
A16: 6 | O16: 8145.075113 | P16: 34.1018 | Q16: 9.472722222 | R16: 9027.324098 | S16: 37.7956 | T16: 10.49877778 | U16: 11799.08283 | V16: 49.4004 | W16: 13.72233333 | AC16: 0
A17: 7 | O17: 8145.075113 | P17: 34.1018 | Q17: 9.472722222 | R17: 9027.324098 | S17: 37.7956 | T17: 10.49877778 | U17: 11799.08283 | V17: 49.4004 | W17: 13.72233333 | AC17: 0
A18: 8 | O18: 8145.075113 | P18: 34.1018 | Q18: 9.472722222 | R18: 9027.324098 | S18: 37.7956 | T18: 10.49877778 | U18: 11799.08283 | V18: 49.4004 | W18: 13.72233333 | AC18: 0
A19: 9 | O19: 8145.075113 | P19: 34.1018 | Q19: 9.472722222 | R19: 9027.324098 | S19: 37.7956 | T19: 10.49877778 | U19: 11799.08283 | V19: 49.4004 | W19: 13.72233333 | AC19: 0
A20: 10 | O20: 8145.075113 | P20: 34.1018 | Q20: 9.472722222 | R20: 9027.324098 | S20: 37.7956 | T20: 10.49877778 | U20: 11799.08283 | V20: 49.4004 | W20: 13.72233333 | AC20: 0
A21: 11 | O21: 8145.075113 | P21: 34.1018 | Q21: 9.472722222 | R21: 9027.324098 | S21: 37.7956 | T21: 10.49877778 | U21: 11799.08283 | V21: 49.4004 | W21: 13.72233333 | AC21: 0
A22: 12 | O22: 8145.075113 | P22: 34.1018 | Q22: 9.472722222 | R22: 9027.324098 | S22: 37.7956 | T22: 10.49877778 | U22: 11799.08283 | V22: 49.4004 | W22: 13.72233333 | AC22: 0
A23: 13 | O23: 8145.075113 | P23: 34.1018 | Q23: 9.472722222 | R23: 9027.324098 | S23: 37.7956 | T23: 10.49877778 | U23: 11799.08283 | V23: 49.4004 | W23: 13.72233333 | AC23: 0
A24: 14 | O24: 8145.075113 | P24: 34.1018 | Q24: 9.472722222 | R24: 9027.324098 | S24: 37.7956 | T24: 10.49877778 | U24: 11799.08283 | V24: 49.4004 | W24: 13.72233333 | AC24: 0
A25: 15 | O25: 8145.075113 | P25: 34.1018 | Q25: 9.472722222 | R25: 9027.324098 | S25: 37.7956 | T25: 10.49877778 | U25: 11799.08283 | V25: 49.4004 | W25: 13.72233333 | AC25: 0
A26: 16 | B26: 93.9209 | C26: 2.7457 | D26: 0.898 | E26: 0.1266 | F26: 0.1535 | G26: 0.0043 | H26: 0.0295 | I26: 0.02 | J26: 0.0123 | K26: 0.0106 | L26: 1.6907 | M26: 0.3879 | N26: 0.7144 | O26: =P26*238.8459 -> 8169.365741 | P26: 34.2035 | Q26: =P26/3.6 -> 9.500972222 | R26: =S26*238.8459 -> 9051.734149 | S26: 37.8978 | T26: =S26/3.6 -> 10.52716667 | U26: =V26/0.0041868 -> 11753.105 | V26: 49.2079 | W26: =V26/3.6 -> 13.66886111 | X26: -5.9 | Y26: -7 | Z26: 0.0001 | AA26: 0.002 | AB26: відс | AC26: 100 | AD26: ОК
A27: 17 | O27: =P27*238.8459 -> 8169.365741 | P27: 34.2035 | Q27: =P27/3.6 -> 9.500972222 | R27: =S27*238.8459 -> 9051.734149 | S27: 37.8978 | T27: =S27/3.6 -> 10.52716667 | U27: =V27/0.0041868 -> 11753.105 | V27: 49.2079 | W27: =V27/3.6 -> 13.66886111 | AC27: 0
A28: 18 | O28: 8169.365741 | P28: 34.2035 | Q28: 9.500972222 | R28: 9051.734149 | S28: 37.8978 | T28: 10.52716667 | U28: 11753.105 | V28: 49.2079 | W28: 13.66886111 | AC28: 0
A29: 19 | O29: 8169.365741 | P29: 34.2035 | Q29: 9.500972222 | R29: 9051.734149 | S29: 37.8978 | T29: 10.52716667 | U29: 11753.105 | V29: 49.2079 | W29: 13.66886111 | AC29: 0
A30: 20 | O30: 8169.365741 | P30: 34.2035 | Q30: 9.500972222 | R30: 9051.734149 | S30: 37.8978 | T30: 10.52716667 | U30: 11753.105 | V30: 49.2079 | W30: 13.66886111 | AC30: 0 | AD30: =IF(AC30=100,"ОК"," ") -> 
A31: 21 | O31: 8169.365741 | P31: 34.2035 | Q31: 9.500972222 | R31: 9051.734149 | S31: 37.8978 | T31: 10.52716667 | U31: 11753.105 | V31: 49.2079 | W31: 13.66886111 | AC31: 0
A32: 22 | O32: 8169.365741 | P32: 34.2035 | Q32: 9.500972222 | R32: 9051.734149 | S32: 37.8978 | T32: 10.52716667 | U32: 11753.105 | V32: 49.2079 | W32: 13.66886111 | AC32: 0
A33: 23 | O33: 8169.365741 | P33: 34.2035 | Q33: 9.500972222 | R33: 9051.734149 | S33: 37.8978 | T33: 10.52716667 | U33: 11753.105 | V33: 49.2079 | W33: 13.66886111 | AC33: 0 | AD33: =IF(AC33=100,"ОК"," ") -> 
A34: 24 | B34: 94.215 | C34: 2.6795 | D34: 0.8308 | E34: 0.1154 | F34: 0.1347 | G34: 0.0015 | H34: 0.0262 | I34: 0.0186 | J34: 0.0072 | K34: 0.0081 | L34: 1.5926 | M34: 0.3704 | N34: 0.7117 | O34: 8157.375676 | P34: 34.1533 | Q34: 9.487027778 | R34: 9039.266393 | S34: 37.8456 | T34: 10.51266667 | U34: 11759.4583 | V34: 49.2345 | W34: 13.67625 | AC34: 100 | AD34: ОК
A35: 25 | O35: =P35*238.8459 -> 8157.375676 | P35: 34.1533 | Q35: =P35/3.6 -> 9.487027778 | R35: =S35*238.8459 -> 9039.266393 | S35: 37.8456 | T35: =S35/3.6 -> 10.51266667 | U35: =V35/0.0041868 -> 11759.4583 | V35: 49.2345 | W35: =V35/3.6 -> 13.67625 | AC35: 0
A36: 26 | O36: 8157.375676 | P36: 34.1533 | Q36: 9.487027778 | R36: 9039.266393 | S36: 37.8456 | T36: 10.51266667 | U36: 11759.4583 | V36: 49.2345 | W36: 13.67625 | AC36: 0
A37: 27 | O37: 8157.375676 | P37: 34.1533 | Q37: 9.487027778 | R37: 9039.266393 | S37: 37.8456 | T37: 10.51266667 | U37: 11759.4583 | V37: 49.2345 | W37: 13.67625 | AC37: 0
A38: 28 | O38: 8157.375676 | P38: 34.1533 | Q38: 9.487027778 | R38: 9039.266393 | S38: 37.8456 | T38: 10.51266667 | U38: 11759.4583 | V38: 49.2345 | W38: 13.67625 | AC38: 0
A39: 29 | O39: 8157.375676 | P39: 34.1533 | Q39: 9.487027778 | R39: 9039.266393 | S39: 37.8456 | T39: 10.51266667 | U39: 11759.4583 | V39: 49.2345 | W39: 13.67625 | AC39: 0
A40: 30 | O40: 8157.375676 | P40: 34.1533 | Q40: 9.487027778 | R40: 9039.266393 | S40: 37.8456 | T40: 10.51266667 | U40: 11759.4583 | V40: 49.2345 | W40: 13.67625 | AC40: 0
A41: 31 | O41: 8157.375676 | P41: 34.1533 | Q41: 9.487027778 | R41: 9039.266393 | S41: 37.8456 | T41: 10.51266667 | U41: 11759.4583 | V41: 49.2345 | W41: 13.67625 | AC41: 0
A42: Рівень одоризації відповідає чинним нормативним документам | O42: 8155.825681 | P42: 34.14681048 | Q42: 9.485225133 | R42: 9038.108973 | S42: 37.84075411 | T42: 10.51132059
H43: Середньозважене значення теплоти згоряння:
B46: Начальник Сєвєродонецького ЛВУМГ Головко Ю.О.
C47: Підрозділу підприємства, якому підпорядкована лабораторія | O47: прізвище | R47: підпис | V47: дата
B48: Інженер ІІ кат.вимірювальної хіміко-аналітичної лабораторії Єрьоменко М.О.
C49: Лабораторія, де здійснювалось вимірювання газу | O49: прізвище | R49: підпис | V49: дата
B50: Начальник служби метрології Ісаєв В.С.
C51: Підрозділу, відповідального за облік газу за маршрутом | O51: прізвище | R51: підпис | V51: дата

Sheet додаток
A2: Додаток до Паспорту фізико-хімічних показників природного газу №655
A4: Область | B4: ГРС, прямий споживач | C4: Cередньозважене значення вищої теплоти згоряння
C5: МДж/м³ | D5: ккал/м³ | E5: кВт*год./м³
A6: Луганська область | B6: ГРС м. Новоайдар | C6: 37.84 | D6: 9039 | E6: 10.51
B7: ГРС с. Михайлюки | C7: 37.85 | D7: 9039 | E7: 10.51
B8: ГРС к-п ім. Суворова | C8: 37.84 | D8: 9039 | E8: 10.51
B9: ГРС к-п Розквіт | C9: 37.84 | D9: 9038 | E9: 10.51
B10: ГРС с. Червоний Жовтень | C10: 37.84 | D10: 9038 | E10: 10.51
B11: ГРС м. Щастя ТЕС | C11: 37.84 | D11: 9038 | E11: 10.51
B12: ГРС м.Щастя | C12: 37.84 | D12: 9039 | E12: 10.51
B13: ГРС к-п ім. Артема | C13: 37.84 | D13: 9038 | E13: 10.51
A14: Середньозважене значення вищої теплоти згоряння по маршруту № 655 | C14: 37.84 | D14: 9038 | E14: 10.51
A18: Начальник Сєвєродонецького ЛВУМГ Головко Ю.О.
A19: Підрозділу підприємства, якому підпорядкована лабораторія | D19: прізвище | E19: підпис | F19: дата
A20: Інженер ІІ кат.вимірювальної хіміко-аналітичної лабораторії Єрьоменко М.О.
A21: Лабораторія, де здійснювалось вимірювання газу | D21: прізвище | E21: підпис | F21: дата
A22: Начальник служби метрології Ісаєв В.С.
A23: Підрозділу, відповідального за облік газу за маршрутом | D23: прізвище | E23: підпис | F23: дата

Sheet variablesList (hidden)
A1: 3 | B1: x:\gaysin | C1: 10, 11, 24, 25, 127, 128, 132, 180, 207, 215 | D1: x:\
B2: x:\Illinci
B3: x:\Talne
